[Event "Icelandic Championship 2022"]
[Site "Selfoss"]
[Date "2022.04.30"]
[Round "8.2"]
[White "Kjartansson, Gudmundur"]
[Black "Thorfinnsson, Bragi"]
[Result "0-1"]
[ECO "E63"]
[WhiteElo "2450"]
[BlackElo "2419"]
[Annotator "TA"]
[PlyCount "108"]
[EventDate "2022.04.21"]
[EventType "tourn"]
[EventCountry "ISL"]
[SourceTitle "playchess.com"]
[Source "ChessBase"]
[SourceQuality "1"]
[TimeControl "40/5400+30:1800+30"]

{[%evp 14,108,44,20,54,39,48,0,15,8,14,0,0,-11,-3,-29,0,-6,0,-19,16,6,14,0,0,0,0,0,11,0,0,0,9,14,20,6,100,61,56,58,79,45,115,21,11,6,0,0,0,0,0,0,0,0,0,0,0,0,97,89,91,56,106,0,7,-162,-162,-1112,-1026,-1087,-1085,-1053,-1025,-1220,-1195,-1205,-1205,-1096,-967,-1696,-1784,-1902,-1855,-6111,-6104,-3913,-2443,-2165,-1963,-11142,-10197,-6619,-6619,-6619,-6099,-4134,-1885]} 1. d4 {[%emt 0:00:12]} Nf6 {[%emt 0:00:58]} 2. c4 {[%emt 0:00:07]} d6 {[%emt 0:01:56]} 3. Nc3 {[%emt 0:01:13]} g6 {[%emt 0:02:20]} 4. g3 {[%emt 0:00:58]} Bg7 {[%emt 0:01:34]} 5. Bg2 {[%emt 0:00:10]} O-O {[%emt 0:01:01]} 6. Nf3 {[%emt 0:00:18]} Nc6 {[%emt 0:03:29]} 7. O-O {[%emt 0:00:39]} a6 {[%emt 0:05:23]} 8. Bf4 {[%emt 0:01:30] 8.b3 is becoming the main line.} Bf5 {[%emt 0:09:43] E63: King's Indian: Fianchetto: Panno Variation with 7...a6.} 9. d5 {[%emt 0:05:32]} Na5 {[%emt 0:00:55]} 10. Nd2 {[%emt 0:02:10]} (10. b3 $14 {was preferrable.}) 10... c5 {[%emt 0:02:14] The position is equal.} 11. e4 {[%emt 0:06:14]} Bg4 {[%emt 0:00:38]} 12. f3 {[%emt 0:07:11]} Bd7 {[%emt 0:01:35] [#]} 13. Qc2 $146 {[%emt 0:01:12]} ({Predecessor:} 13. Qe2 b5 14. Rac1 Nxc4 15. Nxc4 bxc4 16. Qxc4 Qb6 17. Rf2 Rab8 18. Bf1 Bb5 19. Nxb5 axb5 {½-½ (41) Ratsma,M (2295)-Debevec,B (2195) Pardubice 2019}) 13... b5 {[%emt 0:03:17]} 14. b3 {[%emt 0:00:26]} Rb8 {[%emt 0:05:32]} 15. Rae1 {[%emt 0:07:38]} Nh5 {[%emt 0:06:38]} 16. Be3 {[%emt 0:04:58]} bxc4 {[%emt 0:03:02]} 17. bxc4 {[%emt 0:00:10]} e6 {[%emt 0:00:04]} 18. g4 {[%emt 0:01:56]} (18. Qd3 {is interesting.} exd5 19. Nxd5 Rb2 20. f4) 18... exd5 {[%emt 0:02:13]} 19. exd5 {[%emt 0:12:14]} (19. gxh5 $2 d4 20. Bxd4 (20. h6 $2 Bh8 $17) 20... Bxd4+ 21. Kh1 Be6 $17) 19... Nf6 {[%emt 0:03:25]} 20. Bf4 {[%emt 0:06:40]} Rb6 {[%emt 0:02:45]} 21. h3 {[%emt 0:04:58]} (21. Rb1 {is more complex.} Rb4 22. Bxd6 Bf5 23. gxf5 Qxd6 24. Rxb4 cxb4 25. Nce4) 21... Ne8 {[%emt 0:04:14]} 22. Rb1 {[%emt 0:06:08]} Rxb1 {[%emt 0:07:36]} 23. Rxb1 {[%emt 0:00:17]} Bd4+ {[%emt 0:05:13]} 24. Kh1 {[%emt 0:00:40]} g5 {[%emt 0:01:54]} (24... f5 $11 25. Bg3 Qe7) 25. Bg3 {[%emt 0:01:17]} f5 {[%emt 0:00:19]} 26. Ne2 {[%emt 0:01:44]} Bg7 {[%emt 0:01:14]} 27. Be1 {[%emt 0:04:47]} fxg4 {[%emt 0:09:36]} (27... Be5 $1 $14) 28. hxg4 {[%emt 0:02:30]} ({White should try} 28. fxg4 $16 {Threatens to win with Ne4.} h5 29. gxh5) 28... h5 $1 $11 {[%emt 0:00:10]} 29. Ne4 {[%emt 0:01:28]} hxg4 {[%emt 0:01:29]} 30. fxg4 {[%emt 0:00:04]} Bxg4 {[%emt 0:01:12]} 31. N2g3 {[%emt 0:00:20]} Qe7 {[%emt 0:01:24][%cal Og7d4]} 32. Nf2 $1 $36 {[%emt 0:04:48][%mdl 2048] Black is under pressure.} (32. Bxa5 $2 Bd4 33. Bh3 Qh7 34. Nf6+ Nxf6 35. Qxh7+ Kxh7 $19) 32... Bc8 {[%emt 0:02:18][%cal Og5g4]} 33. Bxa5 {[%emt 0:00:56] Black must now prevent Re1.} g4 $1 {[%emt 0:00:05] Hoping for ...Qh4+.} 34. Rb3 {[%emt 0:10:49]} Qh4+ {[%emt 0:02:05]} 35. Kg1 {[%emt 0:00:12]} Bd4 {[%emt 0:00:13] [#]} (35... Be5 $1 $11 {keeps the balance.} 36. Bd2 (36. Nf1 Bd4 $14) 36... Ng7) 36. Be1 $1 $16 {[%emt 0:01:33] Qg6+ is the strong threat.} ({Of course not} 36. Qg6+ $6 Ng7 37. Be1 Be5 $11) 36... Ng7 {[%emt 0:01:51]} 37. Be4 {[%emt 0:02:55] Inhibits Nf5.} Bd7 {[%emt 0:03:25]} ({Better is} 37... a5 $14) 38. Rd3 {[%emt 0:00:50]} (38. Qe2 $16) 38... Be5 $1 $11 {[%emt 0:00:55]} 39. Nd1 $2 {[%emt 0:01:29] [#] Loses the game.} (39. Nfh1 $1 $11 {and White has nothing to worry.} Nh5 40. Qd2) 39... Nh5 $1 $19 {[%emt 0:00:53] aiming for ...Ba4. Really sharp!} 40. Qh2 $2 {[%emt 0:00:44] [#]} ({But not} 40. Qg2 Nf4 41. Qh1 Nh3+ 42. Kg2 Qf6 $17) (40. Re3 Bxg3 41. Bh7+ Kh8 42. Rxg3 Nxg3 43. Bc3+ Rf6 44. Qh2 Qxh2+ 45. Kxh2 Kxh7 46. Bxf6) 40... Rf1+ $1 {[%emt 0:01:43][%mdl 576] Deflection. Black is clearly winning.} 41. Kxf1 {[%emt 0:03:02]} Qxh2 {[%emt 0:00:21]} 42. Nxh5 {[%emt 0:00:10]} Qxh5 {[%emt 0:01:40]} 43. Bg3 {[%emt 0:04:02]} Bxg3 {[%emt 0:05:57]} 44. Rxg3 {[%emt 0:00:04]} Qe5 {[%emt 0:00:05][%csl LRe4,LRg3]} 45. Re3 {[%emt 0:00:04]} Qa1 {[%emt 0:00:14]} 46. Bc2 {[%emt 0:02:03]} Qxa2 {[%emt 0:01:15]} 47. Rc3 {[%emt 0:01:13]} a5 {[%emt 0:05:52][%cal Ba6a5,Ba5a4,Ba4a3,Ba3a2][%mdl 32]} 48. Kf2 {[%emt 0:00:50]} Bf5 {[%emt 0:03:25]} 49. Ne3 {[%emt 0:00:12]} Bxc2 {[%emt 0:00:26]} 50. Rxc2 {[%emt 0:00:03]} Qb1 {[%emt 0:00:05] Strongly threatening ...a4.} 51. Kg3 {[%emt 0:04:49]} a4 {[%emt 0:00:59] And now ...a3 would win.} 52. Kxg4 {[%emt 0:01:45]} a3 {[%emt 0:00:21] ( -> ...a2)} 53. Kf4 {[%emt 0:01:40]} a2 {[%emt 0:00:48]} 54. Rg2+ {[%emt 0:00:29]} Kf7 {[%emt 0:00:31] Weighted Error Value: White=0.78/Black=0.15 (very precise)} (54... Kf8 $142 55. Rxa2 Qxa2) 0-1

[Event "Icelandic Championship 2022"]
[Site "Selfoss"]
[Date "2022.04.30"]
[Round "8.3"]
[White "Mai, Alexander Oliver"]
[Black "Steingrimsson, Hedinn"]
[Result "0-1"]
[ECO "C47"]
[WhiteElo "2207"]
[BlackElo "2535"]
[Annotator "TA"]
[PlyCount "110"]
[EventDate "2022.04.21"]
[EventType "tourn"]
[EventCountry "ISL"]
[SourceTitle "playchess.com"]
[Source "ChessBase"]
[SourceQuality "1"]
[TimeControl "40/5400+30:1800+30"]

{[%evp 16,110,27,25,25,40,31,17,21,0,0,0,0,0,90,0,0,0,0,-135,-141,-152,-158,-180,-91,-123,-110,-116,-85,-118,-123,-116,-116,-156,-158,-155,-160,-217,-217,-201,-137,-144,-142,-139,-141,-154,-151,-199,-191,-181,-137,-189,-140,-168,-125,-198,-131,-173,-179,-177,0,-158,-160,-164,-144,-169,-162,-173,-172,-210,-210,-203,-203,-238,-216,-427,-427,-395,-372,-617,-636,-636,-631,-625,-630,-1450,-552,-29981,-29982,-29983,-29984,-29990,-29986,-29991,-29992,-29997,-29998]} 1. e4 {[%emt 0:00:02]} e5 {[%emt 0:02:26]} 2. Nf3 {[%emt 0:00:08]} Nf6 {[%emt 0:00:04]} 3. Nc3 {[%emt 0:03:40]} Nc6 {[%emt 0:01:59]} 4. d4 {[%emt 0:00:17]} Bb4 {[%emt 0:00:48]} 5. Nxe5 {[%emt 0:00:10]} Bxc3+ {[%emt 0:00:03]} 6. bxc3 {[%emt 0:00:06]} Qe7 {[%emt 0:00:04]} 7. Nxc6 {[%emt 0:00:25]} Qxe4+ {[%emt 0:00:17]} 8. Be2 {[%emt 0:00:05]} Qxc6 {[%emt 0:20:41]} 9. O-O {[%emt 0:00:35]} d5 {[%emt 0:21:08] Inhibits c4. C47: Scotch Four Knights and Four Knights with 4 g3.} 10. a4 {[%emt 0:04:21]} Qxc3 {[%emt 0:10:27]} 11. Ra3 {[%emt 0:03:05]} Qa5 {[%emt 0:00:55] The position is equal.} 12. Bd2 {[%emt 0:35:08]} Qb6 {[%emt 0:00:03] [#]} 13. a5 $146 {[%emt 0:10:08]} ({Predecessor:} 13. Re3+) 13... Qxd4 {[%emt 0:04:10]} 14. Rd3 {[%emt 0:00:55]} Qh4 {[%emt 0:08:32]} (14... Qa4 $11) 15. g3 {[%emt 0:00:59]} (15. Qa1 $1 $16) 15... Qa4 $11 {[%emt 0:03:30] Inhibits Rd4.} 16. Bg5 {[%emt 0:01:02] This bishop pair is nice.} Be6 {[%emt 0:03:16]} (16... Qxa5 17. Bxf6 gxf6 18. Rxd5 $16) 17. Qb1 {[%emt 0:01:07]} (17. Rb3 $11 {keeps the balance.} O-O-O 18. Qb1) 17... Ne4 $1 $17 {[%emt 0:06:10]} (17... Qxa5 18. Qb2 $11) 18. Qxb7 {[%emt 0:13:10]} O-O {[%emt 0:00:07]} 19. Be7 {[%emt 0:00:45]} Rfb8 {[%emt 0:05:09]} ({And not} 19... Qxa5 20. Ra3 Qd2 21. Bxf8 Rxf8 22. Re3 $14) (19... Qxc2 20. Bxf8 Rxf8 21. Re3 $11) ({Better is} 19... Rfe8 $19 20. Rb3 (20. Qxc7 $2 Rac8 $19) 20... Bd7) 20. Qxc7 {[%emt 0:01:20]} Rc8 {[%emt 0:00:01]} 21. Qe5 {[%emt 0:01:32]} Qxa5 {[%emt 0:02:06]} ({Much less strong is} 21... Rxc2 22. Bd1 $14) 22. Bf3 {[%emt 0:01:01]} Qc7 {[%emt 0:01:24]} 23. Qxc7 {[%emt 0:01:35]} Rxc7 {[%emt 0:00:01]} 24. Ba3 {[%emt 0:00:34]} Rxc2 {[%emt 0:00:05] Black is more active.} 25. Bxe4 {[%emt 0:01:30]} dxe4 {[%emt 0:00:02]} 26. Re3 {[%emt 0:02:06]} (26. Rd4 $17 {was necessary.}) 26... Bh3 $19 {[%emt 0:04:28]} 27. Ra1 {[%emt 0:02:21]} Rc4 {[%emt 0:00:34]} 28. Rae1 {[%emt 0:04:19]} f5 {[%emt 0:02:22]} 29. f3 {[%emt 0:01:44][%cal Rf3e4]} Ra4 {[%emt 0:01:47]} 30. Rb1 {[%emt 0:06:11]} Rd8 {[%emt 0:01:23]} 31. Rc3 {[%emt 0:01:12]} (31. fxe4 $17 fxe4 32. Rb4) 31... h5 {[%emt 0:01:01]} 32. fxe4 {[%emt 0:00:47]} Rxe4 {[%emt 0:00:11] ...Rd2 is the strong threat.} 33. Rc2 {[%emt 0:01:40] Against Rd2} (33. Rbc1 $17) 33... Rd7 {[%emt 0:00:11]} (33... a5 $19 34. Rcb2 Kh7) 34. Kf2 {[%emt 0:00:29]} a5 {[%emt 0:00:28]} 35. Bc5 {[%emt 0:01:13]} (35. Re1 $17 {keeps fighting.}) 35... a4 {[%emt 0:01:03]} (35... f4 $19 36. Rb3 Bf5) 36. Be3 {[%emt 0:00:33]} Rd3 {[%emt 0:00:16]} 37. Bf4 {[%emt 0:00:15]} Rd7 $2 {[%emt 0:00:32]} (37... Bg4 $19 {[%cal Oh5h4] White must now prevent ...h4!} 38. Bg5 Bd1) 38. Ra1 $2 {[%emt 0:01:30]} (38. Be3 $1 $11) 38... Kh7 $17 {[%emt 0:00:22]} 39. Rca2 {[%emt 0:00:38]} Ra7 {[%emt 0:00:43]} 40. Be3 {[%emt 0:00:32]} Ra6 {[%emt 0:00:28]} 41. Bf4 {[%emt 0:30:48]} Kg6 {[%emt 0:30:47]} 42. Bc1 {[%emt 0:00:00]} h4 {[%emt 0:00:00][%cal Bh5h4,Bh4h3][%mdl 32]} 43. Bd2 {[%emt 0:00:00]} Kh5 {[%emt 0:00:00]} 44. Ra3 {[%emt 0:00:00]} Bg4 {[%emt 0:00:00]} 45. Be3 $2 {[%emt 0:00:00]} (45. Re1 {was called for.}) 45... h3 $19 {[%emt 0:00:00]} 46. Rc1 {[%emt 0:00:00]} Rb4 {[%emt 0:00:00] Strongly threatening ...Rb2+.} 47. Rc2 {[%emt 0:00:00] Inhibits Rb2.} (47. Ra2) 47... Rb1 {[%emt 0:00:00] Threatens to win with ...Rh1.} 48. Bc1 {[%emt 0:00:00]} Bd1 {[%emt 0:00:00]} 49. Rc5 {[%emt 0:00:00]} Re6 {[%emt 0:00:00] aiming for ...Re2+.} 50. Rd3 {[%emt 0:00:00]} Bg4 {[%emt 0:00:53]} (50... Re2+ $142 51. Kf1 {[#]} Rxh2 $1 52. Rxd1 Rh1+ 53. Ke2 Rxd1 54. Kxd1 h2 55. Rxf5+ Kg6 56. Rg5+ Kh6 57. Rb5+ Rxc1+ $1 {[%mdl 512]} 58. Kxc1 h1=Q+ 59. Kb2 Qe1 60. Rb6+ Kg5 61. Rb5+ Kh6) 51. Rd7 {[%emt 0:00:00]} Re2+ {[%emt 0:00:34] Black mates.} 52. Kf1 {[%emt 0:00:00]} Rxh2 {[%emt 0:00:28]} 53. Kg1 {[%emt 0:00:00]} Rg2+ {[%emt 0:00:07]} 54. Kh1 {[%emt 0:00:00]} Re2 {[%emt 0:01:16]} 55. Rxg7 {[%emt 0:00:00]} Bf3+ {[%emt 0:00:03] Weighted Error Value: White=0.52/Black=0.26 (precise)} 0-1

[Event "Icelandic Championship 2022"]
[Site "Selfoss"]
[Date "2022.04.30"]
[Round "8.4"]
[White "Thorhallsson, Simon"]
[Black "Heimisson, Hilmir Freyr"]
[Result "1/2-1/2"]
[ECO "C42"]
[WhiteElo "2245"]
[BlackElo "2312"]
[Annotator "TA"]
[PlyCount "62"]
[EventDate "2022.04.21"]
[EventType "tourn"]
[EventCountry "ISL"]
[SourceTitle "playchess.com"]
[Source "ChessBase"]
[SourceQuality "1"]
[TimeControl "40/5400+30:1800+30"]

{[%evp 16,62,17,17,15,10,24,23,25,19,17,-14,-14,-18,-13,-20,-6,-12,0,-8,-9,-7,0,-20,-20,-18,-16,-22,-22,-22,-14,-32,0,0,0,0,10,14,18,20,51,48,50,17,47,26,62,0,50]} 1. e4 {[%emt 0:00:02]} e5 {[%emt 0:01:42]} 2. Nf3 {[%emt 0:00:11]} Nf6 {[%emt 0:00:32]} 3. Nxe5 {[%emt 0:00:10]} d6 {[%emt 0:00:10]} 4. Nf3 {[%emt 0:00:06]} Nxe4 {[%emt 0:00:09]} 5. Nc3 {[%emt 0:00:33]} Nxc3 {[%emt 0:01:19]} 6. dxc3 {[%emt 0:00:06]} Be7 {[%emt 0:00:18]} 7. Bf4 {[%emt 0:00:28]} Nc6 {[%emt 0:04:39]} 8. Qd2 {[%emt 0:01:56]} Be6 {[%emt 0:03:22]} 9. O-O-O {[%emt 0:00:42]} Qd7 {[%emt 0:01:47] C42: Petroff Defence: 3 Nxe5 and unusual White 3rd moves.} (9... Bxa2 $2 10. b3 $16) 10. Kb1 {[%emt 0:02:44]} a6 {[%emt 0:08:37]} 11. h4 {[%emt 0:09:14]} h6 {[%emt 0:05:41] White has an edge.} 12. Nd4 {[%emt 0:07:54]} Nxd4 {[%emt 0:00:37] [#]} 13. Qxd4 $146 {[%emt 0:02:19]} ({Predecessor:} 13. cxd4 O-O-O 14. f3 Rde8 15. d5 Bf5 16. Be3 Bf6 17. g4 Bh7 18. Rh3 Qa4 19. f4 Kb8 20. h5 Qd7 21. Rg3 Bh4 22. Qd4 b6 23. Rg1 {½-½ (23) Zinoviev,P (2251)-Istomin,A (2148) ICCF email 2018}) 13... Bf6 {[%emt 0:10:20]} 14. Qe3 {[%emt 0:03:36]} O-O-O {[%emt 0:03:26]} 15. f3 {[%emt 0:22:58]} Kb8 {[%emt 0:04:10]} 16. Qd2 {[%emt 0:04:12]} Qa4 {[%emt 0:08:15]} 17. a3 {[%emt 0:01:12]} d5 {[%emt 0:06:16]} 18. Be3 {[%emt 0:02:37] Prevents d4.} Rhe8 {[%emt 0:13:28]} 19. Bd4 {[%emt 0:02:37]} (19. Be2 {is interesting.} d4 20. Bxd4 c5 21. Qf4+) 19... Bxd4 {[%emt 0:05:07]} 20. cxd4 {[%emt 0:02:11]} Bf5 {[%emt 0:00:30][%cal Oe8e3] White should prevent ...Re3!} 21. Bd3 {[%emt 0:02:05]} Bxd3 {[%emt 0:00:39]} 22. Qxd3 {[%emt 0:00:11]} Re7 {[%emt 0:02:42]} 23. Rhe1 {[%emt 0:02:45]} Qe8 {[%emt 0:01:32]} 24. Qc3 {[%emt 0:11:14]} Rd6 {[%emt 0:02:45]} 25. Re5 {[%emt 0:01:09]} Rc6 {[%emt 0:05:25]} 26. Qe3 {[%emt 0:02:39]} Rce6 {[%emt 0:01:23][%cal Re6e5]} 27. Re1 {[%emt 0:00:11]} Qb5 {[%emt 0:06:03][%cal Oc7c5]} 28. f4 {[%emt 0:08:43]} Rb6 {[%emt 0:01:45][%csl Gb6][%cal Rb5b2] [#]} 29. Qc3 {[%emt 0:04:27]} (29. b3 $5 {[%cal Re5e7]} Rxe5 30. dxe5 $14) 29... Rc6 {[%emt 0:01:16]} 30. Qf3 {[%emt 0:02:11]} Rb6 {[%emt 0:00:43][%csl Gb6][%cal Rb5b2]} 31. Qc3 {[%emt 0:01:50] Active counter play!} (31. b3 $5 {[%cal Re5e7]} Rbe6 32. Kb2 $14) 31... Rc6 {[%emt 0:00:21] Weighted Error Value: White=0.09 (flawless) /Black=0.08 (flawless)} 1/2-1/2

[Event "Icelandic Championship 2022"]
[Site "Selfoss"]
[Date "2022.04.30"]
[Round "8.5"]
[White "Stefansson, Hannes"]
[Black "Thorhallsson, Throstur"]
[Result "1-0"]
[ECO "B81"]
[WhiteElo "2520"]
[BlackElo "2414"]
[Annotator "TA"]
[PlyCount "55"]
[EventDate "2022.04.21"]
[EventType "tourn"]
[EventCountry "ISL"]
[SourceTitle "playchess.com"]
[Source "ChessBase"]
[SourceQuality "1"]
[TimeControl "40/5400+30:1800+30"]

{[%evp 23,55,85,87,79,70,75,150,145,214,216,214,216,494,496,510,482,712,685,712,537,676,701,691,650,679,689,659,672,1244,1229,1585,1492,2866,2465]} 1. e4 {[%emt 0:00:04] ChessBase II} c5 {[%emt 0:02:59]} 2. Nf3 {[%emt 0:00:20]} e6 {[%emt 0:01:19]} 3. d4 {[%emt 0:00:17]} cxd4 {[%emt 0:00:08]} 4. Nxd4 {[%emt 0:00:20]} Nf6 {[%emt 0:00:13]} 5. Nc3 {[%emt 0:00:17]} d6 {[%emt 0:00:19]} 6. g4 {[%emt 0:02:51][%cal Bg2g4,Bg4g5][%mdl 32]} a6 {[%emt 0:00:58]} 7. g5 {[%emt 0:12:45]} Nfd7 {[%emt 0:00:26]} 8. Be3 {[%emt 0:01:19]} Be7 {[%emt 0:01:11]} 9. h4 {[%emt 0:09:31][%cal Bh2h4,Bh4h5][%mdl 32]} O-O {[%emt 0:06:08]} 10. Qd2 {[%emt 0:05:42]} Nc6 {[%emt 0:01:03]} 11. O-O-O {[%emt 0:03:36]} Nxd4 {[%emt 0:00:10]} 12. Qxd4 {[%emt 0:05:49]} b5 {[%emt 0:00:31]} 13. h5 {[%emt 0:08:58] B81: Sicilian Scheveningen: Keres Attack.} Bxg5 {[%emt 0:08:08] [#]} 14. Rg1 $146 {[%emt 0:00:36]} ({Predecessor:} 14. h6 Bf6 15. e5 Bxe5 16. Qe4 d5 17. Nxd5 exd5 18. Qxd5 g6 19. Qxa8 Qf6 20. Qe4 Bxb2+ {1-0 (48) Gashimov,V (2625)-Lepelletier,B (2437) France 2006 EXT 2007 [ChessBase II]}) 14... Bf6 {[%emt 0:10:16]} (14... e5 $142 15. Qxd6 Bxe3+ 16. fxe3 Qf6) 15. Qxd6 $16 {[%emt 0:01:34] White is much more active. The black rooks are badly placed. White is clearly better.} Qe7 {[%emt 0:14:36]} (15... Ne5 $16 {was called for.}) 16. Qg3 $18 {[%emt 0:03:38]} g6 {[%emt 0:01:44] [#]} 17. Bf4 $1 {[%emt 0:02:16]} ({Less strong is} 17. hxg6 fxg6 18. Qc7 Rf7 $14) 17... Re8 $2 {[%emt 0:07:28]} (17... Qc5 18. hxg6 fxg6) 18. Bd6 {[%emt 0:02:12] White is clearly winning.} Qd8 {[%emt 0:04:36]} 19. e5 {[%emt 0:01:08]} Bg7 {[%emt 0:07:03]} (19... Be7 $142 20. Bg2 Ra7) 20. Bg2 {[%emt 0:13:22]} Ra7 {[%emt 0:01:04]} 21. Be4 {[%emt 0:01:19][%cal Rh5g6]} f5 {[%emt 0:06:32]} 22. exf6 {[%emt 0:06:47]} Qxf6 {[%emt 0:01:07]} 23. Qe3 {[%emt 0:02:09]} Rb7 {[%emt 0:01:56] [#]} 24. Bxg6 $1 {[%emt 0:04:12][%mdl 512]} hxg6 {[%emt 0:00:52]} 25. Rxg6 {[%emt 0:00:06] aiming for Rdg1.} Qf5 {[%emt 0:02:40]} 26. Rdg1 {[%emt 0:00:28]} Nf8 {[%emt 0:00:38]} 27. R6g5 {[%emt 0:00:19]} Qf6 {[%emt 0:02:19]} 28. Be5 {[%emt 0:00:56] Black did not feel at home in the position after the opening.  Weighted Error Value: White=0.12 (very precise) /Black=0.59} 1-0